bitfinex/quotes_BTCUSD_20211001
["timestamp","ask_amount","ask_price","bid_price","bid_amount"]
[1633122478594,0.214872,48229.0,48226.0,0.00011298]
[1633122478792,0.214872,48229.0,48227.0,0.0005301]
[1633122478998,0.214872,48229.0,48227.0,0.0151009]
[1633122479393,0.214872,48229.0,48228.0,0.0005301]
[1633122479594,1.314872,48229.0,48228.0,0.0005301]
[1633122479796,0.214872,48229.0,48228.0,0.0005301]
[1633122480594,1.091872,48229.0,48228.0,0.0005301]
[1633122480794,0.241872,48229.0,48228.0,0.0005301]
[1633122482397,0.23788963,48229.0,48228.0,0.0005301]
[1633122482600,0.26588963,48229.0,48227.0,0.0005301]
[1633122483000,0.26588963,48229.0,48227.0,0.21426405]
[1633122483198,0.05101763,48229.0,48228.0,0.01952807]
[1633122483398,0.05101763,48229.0,48228.0,0.02005817]
[1633122483996,0.02301763,48229.0,48228.0,0.02005817]
[1633122484399,0.10814401,48237.0,48228.0,0.02005817]
[1633122484598,0.214872,48236.0,48228.0,0.06862897]
[1633122484799,0.525857,48236.0,48229.0,0.0005301]
[1633122485199,0.36667732,48235.0,48229.0,0.0005301]
[1633122485399,0.108777,48234.0,48229.0,0.0005301]
[1633122485999,0.108777,48234.0,48230.0,0.0183]
[1633122486398,0.108777,48234.0,48231.0,0.0005301]
[1633122486601,0.129777,48234.0,48232.0,0.0183]
[1633122486999,0.129777,48234.0,48233.0,0.0005301]
[1633122487199,0.129777,48234.0,48233.0,0.0188301]
[1633122488001,0.13181288,48234.0,48233.0,0.0188301]
[1633122488202,0.13181288,48234.0,48233.0,0.0183]
[1633122488402,0.13181288,48234.0,48233.0,0.01956459]
[1633122488601,0.15181288,48234.0,48233.0,0.04909469]
[1633122489003,0.15181288,48234.0,48233.0,0.04856459]
[1633122489803,0.128777,48234.0,48233.0,0.04856459]
[1633122490007,0.108777,48234.0,48233.0,0.03411331]
[1633122490208,0.40627489,48234.0,48233.0,0.03411331]
[1633122490406,0.40627489,48234.0,48233.0,0.03284872]
[1633122490604,0.43527489,48234.0,48233.0,0.05584872]
[1633122491008,1.47567489,48234.0,48233.0,0.03754872]
[1633122491278,1.59982362,48234.0,48233.0,0.03754872]
[1633122491479,1.82422534,48234.0,48233.0,0.03754872]
[1633122491676,1.60102534,48234.0,48233.0,0.03754872]
[1633122492079,1.57202534,48234.0,48233.0,0.01454872]
[1633122492675,1.60202534,48234.0,48233.0,0.01454872]
[1633122493277,1.60202534,48234.0,48231.0,0.00010825]
[1633122493480,1.50091256,48234.0,48232.0,0.0005301]
[1633122494478,1.59953786,48234.0,48232.0,0.0005301]
[1633122494681,2.661021,48233.0,48232.0,0.0005301]
[1633122494881,2.875893,48233.0,48232.0,0.0005301]
[1633122495075,0.525893,48233.0,48232.0,0.0005301]
[1633122495479,1.575893,48233.0,48232.0,0.01455314]
[1633122496277,0.525893,48233.0,48232.0,0.01455314]
[1633122496679,0.50830371,48233.0,48232.0,0.01455314]
[1633122497079,0.50830371,48233.0,48232.0,0.01466096]
[1633122497479,1.45830371,48233.0,48232.0,0.01466096]
[1633122498478,1.42330371,48233.0,48232.0,0.01466096]
[1633122498679,1.45730371,48233.0,48232.0,0.01466096]
[1633122498878,0.53033609,48233.0,48232.0,0.00010782]
[1633122499883,0.49633609,48233.0,48232.0,0.00010782]
[1633122500683,0.52833609,48233.0,48232.0,0.00010782]
[1633122500879,0.50530371,48233.0,48232.0,0.01466096]
[1633122501080,0.59817259,48233.0,48232.0,0.01466096]
[1633122502682,0.97084334,48233.0,48232.0,0.00466096]
[1633122503284,0.97084334,48233.0,48232.0,0.00519106]
[1633122503684,0.97084334,48233.0,48232.0,0.00466096]
[1633122503883,0.93684334,48233.0,48232.0,0.00466096]
[1633122504283,0.93684334,48233.0,48230.0,0.0005301]
[1633122504483,0.419787,48232.0,48230.0,0.0005301]
[1633122504884,0.419787,48232.0,48229.0,0.0005301]
[1633122505483,0.419787,48232.0,48228.0,0.05746127]
[1633122505683,0.419787,48232.0,48228.0,0.05745914]
[1633122506087,0.419787,48232.0,48229.0,0.0005301]
[1633122506283,0.2216769,48231.0,48229.0,0.0005301]
[1633122506485,0.214872,48230.0,48229.0,0.01014819]
[1633122506684,0.214872,48230.0,48229.0,0.02614819]
[1633122507482,0.214872,48230.0,48229.0,0.02561809]
[1633122508083,0.214872,48230.0,48229.0,0.00961809]
[1633122508683,0.238872,48230.0,48229.0,0.03561809]
[1633122509887,0.44982574,48230.0,48228.0,0.05692904]
[1633122510087,0.42582574,48230.0,48228.0,0.05692904]
[1633122510688,0.311028,48229.0,48228.0,0.08292904]
[1633122510886,0.419805,48229.0,48228.0,0.17095916]
[1633122511487,0.419805,48229.0,48228.0,0.18595916]
[1633122512087,0.419805,48229.0,48228.0,0.16958387]
[1633122512795,0.432805,48229.0,48228.0,0.20458387]
[1633122513588,0.121777,48229.0,48228.0,0.20458387]
[1633122514191,0.108777,48229.0,48228.0,0.16958387]
[1633122514392,0.3262484,48229.0,48228.0,0.16958387]
[1633122514590,0.108777,48229.0,48228.0,0.16949367]
[1633122514790,0.116777,48229.0,48228.0,0.19949367]
[1633122515393,0.14474112,48229.0,48228.0,0.18986896]
[1633122515592,0.14474112,48229.0,48228.0,0.13292736]
[1633122515593,0.10322843,48229.0,48228.0,0.13292736]
[1633122516190,0.02796412,48229.0,48228.0,0.60292736]
[1633122516790,0.29389855,48229.0,48228.0,0.63492736]
[1633122517390,0.29389855,48229.0,48228.0,0.64455207]
[1633122517391,0.26593443,48229.0,48228.0,0.64455207]
[1633122517790,0.21593443,48229.0,48228.0,0.64455207]
[1633122517994,0.43080043,48229.0,48228.0,0.66951223]
[1633122518191,0.43080043,48229.0,48228.0,0.6696127]
[1633122518390,1.47120043,48229.0,48228.0,0.6696127]
[1633122518791,1.47120043,48229.0,48228.0,0.7046127]
[1633122519192,0.43349656,48225.0,48223.0,0.11392031]
[1633122519398,0.43349656,48225.0,48220.0,0.11402862]
[1633122519399,2.91571687,48223.0,48220.0,0.11402862]
[1633122519596,2.56613242,48221.0,48218.0,0.1140963]
[1633122519796,2.41848134,48219.0,48217.0,0.11411313]
[1633122519995,0.47427863,48218.0,48213.0,0.1]
[1633122520197,0.21857689,48216.0,48213.0,0.1]
[1633122520396,1.47127668,48215.0,48213.0,0.1]
[1633122520601,2.82150994,48214.0,48213.0,0.1]
[1633122520796,2.85423373,48214.0,48213.0,0.12]
[1633122521196,2.75546011,48214.0,48213.0,0.12]
[1633122521599,3.05397561,48214.0,48213.0,0.12]
[1633122521795,4.09437561,48214.0,48213.0,0.12]
[1633122522198,4.09437561,48214.0,48213.0,0.1]
[1633122522398,3.86735401,48214.0,48213.0,0.1]
[1633122522797,3.86363022,48214.0,48213.0,0.1]
[1633122522998,3.86363022,48214.0,48213.0,0.10487863]
[1633122523397,4.04468009,48214.0,48213.0,0.10487863]
[1633122523997,4.23888009,48214.0,48213.0,0.10487863]
[1633122524401,4.23888009,48214.0,48206.0,0.0008]
[1633122524402,2.39992137,48213.0,48206.0,0.0008]
[1633122524600,0.067271,48209.0,48206.0,0.0008]
[1633122524802,0.114856,48207.0,48206.0,0.0008]
[1633122525401,0.34436741,48207.0,48206.0,0.0008]
[1633122526005,0.114856,48207.0,48206.0,0.0008]
[1633122526205,1.19039369,48207.0,48206.0,0.0008]
[1633122526801,1.22539369,48207.0,48206.0,0.0008]
[1633122527200,1.32039142,48207.0,48206.0,0.0008]
[1633122527805,0.067271,48206.0,48204.0,0.0004]
[1633122528005,0.85196885,48205.0,48204.0,0.0004]
[1633122528308,0.85068696,48205.0,48204.0,0.0004]
[1633122528507,0.85068696,48205.0,48204.0,0.00466248]
[1633122528703,1.186256,48205.0,48204.0,0.00466248]
[1633122528902,1.186256,48205.0,48204.0,0.00477355]
[1633122529507,1.186256,48205.0,48204.0,0.22797355]
[1633122529704,1.0714,48205.0,48204.0,0.247515]
[1633122529906,1.06947563,48205.0,48204.0,0.0248451]
[1633122530170,1.03847563,48205.0,48204.0,0.01414857]
[1633122530511,1.03847563,48205.0,48204.0,0.01361847]
[1633122530706,1.06247563,48205.0,48204.0,0.03261847]
[1633122531308,1.28186252,48205.0,48204.0,0.03261847]
[1633122531908,1.09973552,48205.0,48204.0,0.03261847]
[1633122532106,1.07573552,48205.0,48204.0,0.01361847]
[1633122532707,1.07573552,48205.0,48204.0,0.03161847]
[1633122532907,1.09773552,48205.0,48204.0,0.03161847]
[1633122533910,1.06047563,48205.0,48204.0,0.03161847]
[1633122534108,1.06047563,48205.0,48204.0,0.01361847]
[1633122534310,1.03847563,48205.0,48204.0,0.01490034]
[1633122534512,1.03847563,48205.0,48204.0,0.01543044]
[1633122534711,1.03847563,48205.0,48204.0,0.04043044]
[1633122534912,0.81166383,48205.0,48204.0,0.47167464]
[1633122535112,0.51106412,48205.0,48204.0,0.79150378]
[1633122536112,0.51106412,48205.0,48204.0,0.76650378]
[1633122536113,0.48606412,48205.0,48204.0,0.76650378]
[1633122536711,0.52332407,48205.0,48204.0,0.76650378]
[1633122536912,0.52332407,48205.0,48204.0,0.80250378]
[1633122537109,0.52332407,48205.0,48204.0,1.90650378]
[1633122538109,0.52332407,48205.0,48204.0,1.87050378]
[1633122538512,0.52332407,48205.0,48204.0,1.99930932]
[1633122538912,0.47521877,48205.0,48204.0,2.03530932]
[1633122539174,0.47521877,48205.0,48204.0,1.81726512]
[1633122539175,0.43795882,48205.0,48204.0,1.81726512]
[1633122539310,0.43795882,48205.0,48204.0,1.81736509]
[1633122539911,0.43795882,48205.0,48204.0,1.81236509]
[1633122540111,0.43795882,48205.0,48204.0,0.65147126]
[1633122540311,0.43795882,48205.0,48204.0,0.61547126]
[1633122540512,0.38917081,48205.0,48204.0,0.82197037]
[1633122540714,0.38917081,48205.0,48204.0,0.71832556]
[1633122540913,0.38917081,48205.0,48204.0,0.75532556]
[1633122541317,0.38917081,48205.0,48204.0,1.85932556]
[1633122541517,0.38917081,48205.0,48204.0,1.65282645]
[1633122541715,0.38917081,48205.0,48204.0,1.7652795]
[1633122541915,0.42643083,48205.0,48204.0,1.7652795]
[1633122542113,0.42643083,48205.0,48204.0,1.7282795]
[1633122542914,0.42643083,48205.0,48204.0,1.7815795]
[1633122543716,0.42643083,48205.0,48204.0,1.66912645]
[1633122544118,0.42643083,48205.0,48204.0,1.63359635]
[1633122544517,0.37643083,48205.0,48204.0,1.63359635]
[1633122544717,0.33917081,48205.0,48204.0,1.63359635]
[1633122544915,0.33917081,48205.0,48204.0,1.67012645]
[1633122545181,0.25108725,48205.0,48204.0,0.56612645]
[1633122545918,0.25108725,48205.0,48204.0,0.6800959]
[1633122546118,0.25108725,48205.0,48204.0,0.56612645]
[1633122546317,0.25108725,48205.0,48204.0,0.53002303]
[1633122546521,0.25108725,48205.0,48204.0,0.64398829]
[1633122546718,0.25108725,48205.0,48204.0,0.64345819]
[1633122546918,0.25108725,48205.0,48204.0,0.67898829]
[1633122547120,0.25108725,48205.0,48204.0,0.56502303]
[1633122547520,0.28834734,48205.0,48204.0,0.56502303]
[1633122548319,0.28834734,48205.0,48204.0,0.53002303]
[1633122548720,0.28834734,48205.0,48204.0,0.30576978]
[1633122548923,0.28834734,48205.0,48204.0,0.56396978]
[1633122549920,0.28834734,48205.0,48204.0,0.56526564]
[1633122550321,0.28834734,48205.0,48204.0,0.53026564]
[1633122550522,0.25108725,48205.0,48204.0,0.53026564]
[1633122550920,0.25108725,48205.0,48204.0,0.56626564]
[1633122551521,0.25108725,48205.0,48197.0,0.62387]
[1633122551727,0.25108725,48205.0,48204.0,0.00126309]
[1633122551921,0.25108725,48205.0,48204.0,0.23450909]
[1633122552721,0.58921842,48205.0,48204.0,0.23450909]
[1633122552921,0.62647857,48205.0,48204.0,0.264246]
[1633122553122,0.62647857,48205.0,48204.0,0.16339736]
[1633122553322,0.62647857,48205.0,48204.0,0.0443]
[1633122553522,0.62647857,48205.0,48204.0,0.27711827]
[1633122554327,0.62647857,48205.0,48204.0,0.24611827]
[1633122554927,0.3013474,48205.0,48204.0,0.24611827]
[1633122555125,0.27121267,48205.0,48204.0,0.46106427]
[1633122555726,0.23395252,48205.0,48204.0,0.77346319]
[1633122556132,1.78395252,48205.0,48204.0,0.76828319]
[1633122556326,0.22095252,48205.0,48204.0,0.55333719]
[1633122556531,0.22095252,48205.0,48204.0,0.76828319]
[1633122556930,0.24595252,48205.0,48204.0,0.94221483]
[1633122557326,0.24595252,48205.0,48204.0,1.05641424]
[1633122557524,0.24595252,48205.0,48204.0,0.94221483]
[1633122557728,0.24595252,48205.0,48204.0,1.05642394]
[1633122557932,0.24595252,48205.0,48204.0,0.39699764]
[1633122558127,0.24595252,48205.0,48204.0,0.12239331]
[1633122558327,0.25821274,48205.0,48204.0,0.12239331]
[1633122558529,0.25821274,48205.0,48204.0,0.12366342]
[1633122558728,0.25821274,48205.0,48204.0,0.12366878]
[1633122558929,0.26721274,48205.0,48204.0,0.36313802]
[1633122559231,0.26721274,48205.0,48204.0,0.57808402]
[1633122559630,0.26721274,48205.0,48204.0,0.46380535]
[1633122560231,0.25821274,48205.0,48204.0,0.65770547]
[1633122560433,0.25821274,48205.0,48204.0,1.07248647]
[1633122560832,0.26221274,48205.0,48204.0,1.07248647]
[1633122561034,0.22495252,48205.0,48204.0,1.07248647]
[1633122562834,0.23295252,48205.0,48204.0,1.07248647]
[1633122563633,0.27021281,48205.0,48204.0,1.07248647]
[1633122564035,0.27021281,48205.0,48204.0,1.06753783]
[1633122564235,0.25821281,48205.0,48204.0,1.06753783]
[1633122564834,0.26921281,48205.0,48204.0,1.06753783]
[1633122566296,0.25821281,48205.0,48204.0,1.06753783]
[1633122566494,0.25768297,48205.0,48204.0,1.06753783]
[1633122566694,0.25768297,48205.0,48204.0,1.11304912]
[1633122566899,0.24142268,48205.0,48204.0,1.11304912]
[1633122568095,0.22042268,48205.0,48204.0,1.11304912]
[1633122568898,0.26268303,48205.0,48204.0,1.14704912]
[1633122569497,0.26268303,48205.0,48204.0,2.25104912]
[1633122569698,0.26268303,48205.0,48204.0,2.36444003]
[1633122569902,0.26268303,48205.0,48204.0,0.84565903]
[1633122570100,0.26268303,48205.0,48204.0,0.73226812]
[1633122570299,0.25768303,48205.0,48204.0,0.69826812]
[1633122570502,0.25768303,48205.0,48204.0,0.45879888]
[1633122570703,0.15768303,48205.0,48204.0,0.45879888]
[1633122570902,0.15768303,48205.0,48204.0,0.29498873]
[1633122570903,0.18068303,48205.0,48204.0,0.29498873]
[1633122571102,0.18068303,48205.0,48204.0,0.08004273]
[1633122571506,0.18068303,48205.0,48204.0,0.27971667]
[1633122572307,0.12042268,48205.0,48204.0,0.24971667]
[1633122572511,0.12042268,48205.0,48204.0,0.46466267]
[1633122572906,0.13642268,48205.0,48204.0,0.49466267]
[1633122573107,0.13642268,48205.0,48204.0,0.69718646]
[1633122574108,0.13642268,48205.0,48204.0,0.66718646]
[1633122574308,0.1576831,48205.0,48204.0,0.66718646]
[1633122574910,0.1736831,48205.0,48204.0,0.70018646]
[1633122575511,0.1736831,48205.0,48204.0,0.28556652]
[1633122575913,0.1736831,48205.0,48204.0,0.08177262]
[1633122576511,0.1576831,48205.0,48204.0,0.04877262]
[1633122576912,0.1776831,48205.0,48204.0,0.07877262]
[1633122577716,0.14042268,48205.0,48204.0,0.07877262]
[1633122578313,0.12042268,48205.0,48204.0,0.04877262]
[1633122578516,1.12215661,48205.0,48204.0,0.00326133]
[1633122578715,1.12215661,48205.0,48204.0,0.05607313]
[1633122578913,1.14215661,48205.0,48204.0,0.08107313]
[1633122579314,0.89095544,48205.0,48204.0,0.08107313]
[1633122579714,0.92821592,48205.0,48204.0,0.08107313]
[1633122579916,0.70378116,48205.0,48204.0,0.08107313]
[1633122580320,0.92698116,48205.0,48204.0,0.08107313]
[1633122580521,0.90698116,48205.0,48204.0,0.05607313]
[1633122580916,0.93598116,48205.0,48204.0,0.07507313]
[1633122581320,0.93598116,48205.0,48204.0,0.07007313]
[1633122581716,0.71278116,48205.0,48204.0,0.07007313]
[1633122582318,0.68378116,48205.0,48204.0,0.05107313]
[1633122582521,1.85829701,48202.0,48201.0,0.65263033]
[1633122582718,0.64364301,48202.0,48201.0,0.65263033]
[1633122582921,0.64364301,48202.0,48201.0,0.0183]
[1633122583319,0.6449235,48202.0,48201.0,0.67093033]
[1633122583522,0.41506154,48196.0,48195.0,0.0004]
[1633122583719,0.83974514,48196.0,48195.0,0.0004]
[1633122583919,0.96014514,48196.0,48195.0,0.0004]
[1633122584118,0.71014684,48196.0,48195.0,0.28772136]
[1633122584318,0.9475773,48196.0,48195.0,0.0004]
[1633122584526,0.71014684,48196.0,48195.0,0.06685172]
[1633122584719,0.93334684,48196.0,48195.0,0.06685172]
[1633122584918,0.76337461,48196.0,48195.0,0.06685172]
[1633122585320,1.66337461,48196.0,48195.0,0.0004]
[1633122585527,1.66337461,48196.0,48195.0,0.04677854]
[1633122586118,1.88657461,48196.0,48195.0,0.0004]
[1633122586323,1.87110471,48196.0,48195.0,0.04608259]
[1633122586718,1.64790471,48196.0,48195.0,0.04608259]
[1633122586919,1.68090471,48196.0,48195.0,0.04608259]
[1633122587320,1.90410471,48196.0,48195.0,0.04608259]
[1633122587921,0.78090471,48196.0,48195.0,0.04608259]
[1633122588322,0.96687694,48196.0,48195.0,0.04608259]
[1633122588923,0.96387694,48196.0,48195.0,0.04608259]
[1633122589124,0.96387694,48196.0,48195.0,0.0004]
[1633122589323,0.74067694,48196.0,48195.0,0.0004]
[1633122589523,0.96387694,48196.0,48195.0,0.0004]
[1633122590324,0.74790478,48196.0,48195.0,0.0004]
[1633122590927,0.77890478,48196.0,48195.0,0.0004]
[1633122591726,0.77890478,48196.0,48195.0,0.00048872]
[1633122591926,1.00210478,48196.0,48195.0,0.00048872]
[1633122592329,2.10210478,48196.0,48195.0,0.00048872]
[1633122592527,1.84790478,48196.0,48195.0,0.00048872]
[1633122592925,0.78390478,48196.0,48195.0,0.00048872]
[1633122593329,1.58390478,48196.0,48195.0,0.00048872]
[1633122593725,1.54667694,48196.0,48195.0,0.00048872]
[1633122594128,1.76987694,48196.0,48195.0,0.00048872]
[1633122594328,2.46987694,48196.0,48195.0,0.00048872]
[1633122594526,2.21067694,48196.0,48195.0,0.00048872]
[1633122594927,2.564946,48193.0,48190.0,0.0004]
[1633122595132,0.21622073,48189.0,48180.0,0.0008]
[1633122595330,0.00125112,48184.0,48180.0,0.0008]
[1633122595531,2.56621941,48183.0,48180.0,0.0008]
[1633122595729,2.72555053,48183.0,48182.0,0.0008]
[1633122595933,2.35121757,48182.0,48181.0,0.0004]
[1633122596127,2.35,48181.0,48180.0,0.0004]
[1633122596332,2.74643272,48181.0,48175.0,0.0012]
[1633122596530,0.214946,48177.0,48171.0,0.0012]
[1633122596732,2.35,48179.0,48171.0,0.0012]
[1633122596733,2.564946,48174.0,48171.0,0.0012]
[1633122596935,2.62592771,48173.0,48171.0,0.0012]
[1633122597129,2.9090761,48173.0,48171.0,0.0012]
[1633122597329,2.76559719,48173.0,48171.0,0.0012]
[1633122597529,0.017082,48171.0,48168.0,0.0006]
[1633122597728,2.56617347,48169.0,48168.0,0.00044]
[1633122597930,0.33710357,48169.0,48168.0,0.00044]
[1633122598130,2.68710357,48169.0,48168.0,0.00021]
[1633122598328,0.29287747,48169.0,48168.0,0.00021]
[1633122598532,0.41327747,48169.0,48168.0,0.00021]
[1633122598932,0.44427747,48169.0,48168.0,0.00021]
[1633122600332,0.41327747,48169.0,48168.0,0.00021]
[1633122600531,0.4115199,48169.0,48168.0,0.00021]
[1633122600739,0.7415,48180.0,48169.0,0.15108558]
[1633122600933,0.9675,48187.0,48175.0,0.457]
[1633122601136,0.714946,48182.0,48179.0,0.00122501]
[1633122601331,0.714946,48182.0,48180.0,0.0183]
[1633122601533,0.214946,48182.0,48181.0,0.0183]
[1633122603131,0.241946,48182.0,48181.0,0.0183]
[1633122603533,0.241946,48182.0,48181.0,0.01814]
[1633122603737,0.03718236,48183.0,48181.0,0.01814]
[1633122604133,0.03718236,48183.0,48181.0,0.01805]
[1633122605198,0.06218236,48183.0,48181.0,0.01796]
[1633122605938,0.06218236,48183.0,48181.0,0.01765]
[1633122606533,0.03718236,48183.0,48181.0,0.01765]
[1633122607136,0.06418236,48183.0,48181.0,0.01765]
[1633122608339,0.03718236,48183.0,48181.0,0.01765]
[1633122608538,0.03718236,48183.0,48181.0,0.20874467]
[1633122608946,0.03718236,48183.0,48182.0,3.23132847]
[1633122609144,0.06618236,48183.0,48182.0,4.01457447]
[1633122609344,0.33355539,48196.0,48190.0,0.00121585]
[1633122609541,0.33355539,48196.0,48195.0,1.00945967]
[1633122609743,0.33355539,48196.0,48195.0,1.34786758]
[1633122609942,0.33355539,48196.0,48195.0,2.67506758]
[1633122610739,0.33355539,48196.0,48195.0,2.88101967]
[1633122610940,0.33355539,48196.0,48195.0,1.77701967]
[1633122611140,0.33355539,48196.0,48195.0,1.82301967]
[1633122612541,0.33355539,48196.0,48195.0,1.77701967]
[1633122612943,0.33355539,48196.0,48195.0,1.77829455]
[1633122613142,0.32855539,48196.0,48195.0,1.81229455]
[1633122613343,0.32855539,48196.0,48195.0,2.91629455]
[1633122613946,0.32855539,48196.0,48195.0,2.96629455]
[1633122614212,0.26855539,48196.0,48195.0,3.07629455]
[1633122614346,0.26855539,48196.0,48195.0,3.04229455]
[1633122614546,0.26855539,48196.0,48195.0,2.93229455]
[1633122614748,0.26893276,48196.0,48195.0,1.60509455]
[1633122615146,0.26893276,48196.0,48195.0,1.63709455]
[1633122615347,0.26893276,48196.0,48195.0,1.63581967]
[1633122615749,0.26893276,48196.0,48195.0,1.43579445]
[1633122616549,0.26893276,48196.0,48195.0,1.40379445]
[1633122616753,0.26893276,48196.0,48195.0,1.58607756]
[1633122617149,0.26893276,48196.0,48195.0,1.62307756]
[1633122618351,0.26893276,48196.0,48195.0,1.58607756]
[1633122618952,0.26893276,48196.0,48195.0,1.40379445]
[1633122619152,0.26893276,48196.0,48195.0,1.44179445]
[1633122619954,0.20893276,48196.0,48195.0,1.63535696]
[1633122620353,0.20893276,48196.0,48195.0,1.44179445]
[1633122620555,0.20893276,48196.0,48195.0,1.40379445]
[1633122621156,0.20893276,48196.0,48195.0,1.43979445]
[1633122621959,0.20893276,48196.0,48195.0,1.63465213]
[1633122622357,0.20893276,48196.0,48195.0,1.43979445]
[1633122622557,0.20893276,48196.0,48195.0,1.40379445]
[1633122623222,0.20893276,48196.0,48195.0,1.43779445]
[1633122623359,0.20893276,48196.0,48195.0,1.68211817]
[1633122624360,0.20893276,48196.0,48195.0,1.64811817]
[1633122625164,0.20893276,48196.0,48195.0,1.68211817]
[1633122626567,0.20893276,48196.0,48195.0,1.66709701]
[1633122627174,0.20893276,48196.0,48195.0,1.70209701]
[1633122627369,0.20893276,48196.0,48195.0,1.34966256]
[1633122627569,0.22756987,48196.0,48195.0,1.34966256]
[1633122628173,0.22756987,48196.0,48195.0,1.10533884]
[1633122628371,0.22756987,48196.0,48195.0,1.07033884]
[1633122628574,0.22756987,48196.0,48195.0,1.42899783]
[1633122629245,0.22756987,48196.0,48195.0,1.69066918]
[1633122629374,0.22756987,48196.0,48195.0,1.46599783]
[1633122630376,0.22756987,48196.0,48195.0,1.64785073]
[1633122630575,0.22756987,48196.0,48195.0,1.61085073]
[1633122631176,0.22756987,48196.0,48195.0,1.64785073]
[1633122631376,0.22756987,48196.0,48195.0,1.64793058]
[1633122632242,0.20893276,48196.0,48195.0,1.64793058]
[1633122632778,0.20893276,48196.0,48195.0,1.62895174]
[1633122632977,0.22756994,48196.0,48195.0,1.62895174]
[1633122633176,0.22756994,48196.0,48195.0,1.62395174]
[1633122634778,0.22756994,48196.0,48195.0,1.59195174]
[1633122635179,0.21756994,48196.0,48195.0,1.62395174]
[1633122635780,0.21756994,48196.0,48195.0,1.49800486]
[1633122636378,0.21756994,48196.0,48195.0,1.46600486]
[1633122637180,0.21756994,48196.0,48195.0,1.49800486]
[1633122637582,0.19893276,48196.0,48195.0,1.49800486]
[1633122637779,0.19893276,48196.0,48195.0,1.5169837]
[1633122638580,0.19893276,48196.0,48195.0,2.5889837]
[1633122638781,0.19893276,48196.0,48195.0,2.66864751]
[1633122638782,0.21757001,48196.0,48195.0,2.66864751]
[1633122639184,0.21757001,48196.0,48195.0,2.70064751]
[1633122639380,0.21757001,48196.0,48195.0,1.59664751]
[1633122639782,0.21757001,48196.0,48195.0,1.59786157]
[1633122640586,0.21757001,48196.0,48195.0,1.56586157]
[1633122640783,0.21757001,48196.0,48195.0,1.56464751]
[1633122640984,0.21757001,48196.0,48195.0,2.66864751]
[1633122641182,0.21757001,48196.0,48195.0,2.70164751]
[1633122641784,0.21757001,48196.0,48195.0,1.59764751]
[1633122643186,0.19893276,48196.0,48195.0,1.60064751]
[1633122644272,0.21757008,48196.0,48195.0,1.58166867]
[1633122644588,0.21757008,48196.0,48195.0,1.52066867]
[1633122645191,0.21757008,48196.0,48195.0,1.55266867]
[1633122646590,0.21757008,48196.0,48195.0,1.52066867]
[1633122647255,0.21757008,48196.0,48195.0,1.55266867]
[1633122647591,0.21757008,48196.0,48195.0,1.53818777]
[1633122648593,0.19893276,48196.0,48195.0,1.52516661]
[1633122649198,0.19893276,48196.0,48195.0,1.55716661]
[1633122649593,0.19393276,48196.0,48195.0,1.53818777]
[1633122649794,0.21257015,48196.0,48195.0,1.53818777]
[1633122650596,0.21257015,48196.0,48195.0,1.50618777]
[1633122650994,0.21257015,48196.0,48195.0,1.14752878]
[1633122651194,0.21257015,48196.0,48195.0,1.09986497]
[1633122651795,0.21257015,48196.0,48195.0,2.20386497]
[1633122651997,0.21257015,48196.0,48195.0,2.28350947]
[1633122652594,0.21257015,48196.0,48195.0,2.5816964]
[1633122653198,0.21257015,48196.0,48195.0,2.6136964]
[1633122654197,0.19393276,48196.0,48195.0,2.63267524]
[1633122654599,0.19393276,48196.0,48195.0,2.60067524]
[1633122655195,0.21257022,48196.0,48195.0,2.6146964]
[1633122656595,0.21257022,48196.0,48195.0,2.5816964]
[1633122657196,0.21257022,48196.0,48195.0,2.6146964]
[1633122658600,0.21257022,48196.0,48195.0,2.5816964]
[1633122659299,0.21257022,48196.0,48195.0,2.6146964]
[1633122659500,0.21257022,48196.0,48195.0,2.10265657]
[1633122659698,0.19393276,48196.0,48195.0,1.01763541]
[1633122659903,0.19393276,48196.0,48195.0,0.93799091]
[1633122660099,0.19393276,48196.0,48195.0,2.04199091]
[1633122660298,0.19393276,48196.0,48195.0,2.12350263]
[1633122660699,0.21257028,48196.0,48195.0,2.3543018]
[1633122661106,0.21257028,48196.0,48195.0,2.63867715]
[1633122662704,0.21257028,48196.0,48195.0,1.2173018]
[1633122662903,0.21257028,48196.0,48195.0,1.13579008]
[1633122663303,0.21257028,48196.0,48195.0,1.16879008]
[1633122664504,0.21257028,48196.0,48195.0,1.43915551]
[1633122664704,0.21257028,48196.0,48195.0,0.96759342]
[1633122664904,0.21257028,48196.0,48195.0,0.88601207]
[1633122665108,0.19393276,48196.0,48195.0,0.88601207]
[1633122665308,0.19393276,48196.0,48195.0,0.93699091]
[1633122666304,0.21257035,48196.0,48195.0,0.91801207]
[1633122667306,0.21257035,48196.0,48195.0,0.91901207]
[1633122668779,0.21257035,48196.0,48195.0,0.88601207]
[1633122669373,0.21257035,48196.0,48195.0,0.92001207]
[1633122670574,0.19393276,48196.0,48195.0,0.92001207]
[1633122670774,0.19393276,48196.0,48195.0,0.90499091]
[1633122671378,0.19393276,48196.0,48195.0,0.93799091]
[1633122671576,0.19393276,48196.0,48195.0,0.91901207]
[1633122671776,0.21257042,48196.0,48195.0,0.91901207]
[1633122673776,0.21257042,48196.0,48195.0,0.95201207]
[1633122673984,0.20757042,48196.0,48195.0,0.95201207]
[1633122674778,0.20757042,48196.0,48195.0,0.91901207]
[1633122674976,0.20757042,48196.0,48195.0,1.12547049]
[1633122675178,0.20757042,48196.0,48195.0,1.21217162]
[1633122675375,0.20757042,48196.0,48195.0,1.12547049]
[1633122675577,0.20757042,48196.0,48195.0,1.212156]
[1633122675777,0.20757042,48196.0,48195.0,1.244156]
[1633122676176,0.18893276,48196.0,48195.0,1.26313484]
[1633122677177,0.20757049,48196.0,48195.0,1.212156]
[1633122677578,0.20757049,48196.0,48195.0,0.97269758]
[1633122677782,0.6708,48196.0,48195.0,0.09243297]
[1633122677982,0.88828949,48196.0,48195.0,0.12543297]
[1633122678182,0.88881959,48196.0,48195.0,0.12543297]
[1633122678381,1.53881959,48196.0,48195.0,0.12543297]
[1633122678582,1.95102767,48196.0,48195.0,0.12543297]
[1633122678779,1.96873422,48196.0,48195.0,0.10137985]
[1633122679185,1.96873422,48196.0,48195.0,0.06837985]
[1633122679379,1.96873422,48196.0,48195.0,0.06810796]
[1633122679780,2.24805,48196.0,48195.0,0.06810796]
[1633122679978,1.62605,48196.0,48195.0,0.08910796]
[1633122680179,1.34673422,48196.0,48195.0,0.08910796]
[1633122680380,1.10795753,48196.0,48195.0,0.08910796]
[1633122681182,1.07995753,48196.0,48195.0,0.06810796]
[1633122681382,1.07914911,48196.0,48195.0,0.06810796]
[1633122681581,1.06051138,48196.0,48195.0,0.06810796]
[1633122681786,1.08904148,48196.0,48195.0,0.0960868]
[1633122681983,1.08851138,48196.0,48195.0,0.03793933]
[1633122682186,1.08904148,48196.0,48195.0,0.03793933]
[1633122682383,1.48904148,48196.0,48195.0,0.03793933]
[1633122682584,1.08851138,48196.0,48195.0,0.01896049]